[Event "Superbet Blitz Poland 2023"]
[Site "Warsaw"]
[Date "2023.05.25"]
[Round "12"]
[White "So, Wesley"]
[Black "Rapport, Richard"]
[Result "1/2-1/2"]
[ECO "A70"]
[WhiteElo "2760"]
[BlackElo "2745"]
[Annotator "TA"]
[PlyCount "120"]
[EventDate "2023.05.24"]
[EventType "tourn"]
[EventCountry "POL"]
[SourceTitle "playchess.com"]
[Source "ChessBase"]
[SourceQuality "1"]
[TimeControl "300+2"]

{[%evp 23,120,39,41,42,39,0,50,44,56,35,40,0,0,-11,0,0,0,0,0,-7,0,0,0,0,-15,-47,40,40,40,39,85,81,86,20,22,-5,-5,-4,18,25,29,14,94,8,77,0,89,0,116,0,0,0,0,0,0,-36,-4,-4,-4,-4,-4,-4,0,-4,0,0,0,-6,-6,-8,-8,-9,-8,-8,-8,-8,-8,-8,-8,-8,-8,-8,-8,-8,-8,-8,-8,-8,0,0,8,8,8,8,8,8,8,8,8]} 1. d4 {[%emt 0:00:03]} Nf6 {[%emt 0:00:01]} 2. c4 {[%emt 0:00:01]} c5 {[%emt 0:00:01]} 3. d5 {[%emt 0:00:01]} e6 {[%emt 0:00:00]} 4. Nc3 {[%emt 0:00:04]} exd5 {[%emt 0:00:01]} 5. cxd5 {[%emt 0:00:01]} d6 {[%emt 0:00:01]} 6. e4 {[%emt 0:00:02]} g6 {[%emt 0:00:01]} 7. Nf3 {[%emt 0:00:04]} a6 {[%emt 0:00:02]} 8. a4 {[%emt 0:00:04]} Bg4 {[%emt 0:00:02]} 9. Be2 {[%emt 0:00:04]} Bxf3 {[%emt 0:00:01]} 10. Bxf3 {[%emt 0:00:01]} Bg7 {[%emt 0:00:03]} 11. O-O {[%emt 0:00:03]} Nbd7 {[%emt 0:00:01]} 12. Be2 {[%emt 0:00:09]} O-O {[%emt 0:00:03]} 13. Qc2 {[%emt 0:00:01] A70: Modern Benoni: 6 e4 g6 7 Nf3.} Re8 {[%emt 0:00:03]} 14. Rb1 {[%emt 0:00:22]} Qc7 {[%emt 0:00:13] [#]} (14... Rc8 $11) 15. b3 $146 {[%emt 0:00:06] White is slightly better.} ({Predecessor:} 15. Bg5 Rac8 16. Bf4 Re7 17. Kh1 h6 18. Bc4 g5 19. Bg3 Rce8 20. Rbe1 Nh5 21. Qd1 Nxg3+ 22. fxg3 {0-1 Redondo Bella,X (1910)-Boada Barbe,A (1995) Terrassa op-B 1996 (2)}) 15... Rab8 {[%emt 0:00:01]} 16. Re1 {[%emt 0:00:06]} Ne5 {[%emt 0:01:14]} 17. Bb2 {[%emt 0:00:22]} c4 {[%emt 0:00:19]} 18. Bf1 {[%emt 0:00:36]} b5 {[%emt 0:00:05]} 19. axb5 {[%emt 0:00:01]} axb5 {[%emt 0:00:01]} 20. bxc4 {[%emt 0:00:06]} bxc4 {[%emt 0:00:18]} 21. Ba3 {[%emt 0:00:07] Nb5 would be deadly.} Nfd7 {[%emt 0:01:03][%cal Oe5d3] And now ...Nd3! would win.} (21... Nfg4 {feels hotter.} 22. h3 Nd3 23. hxg4 Nxe1 24. Rxe1 Qa5) 22. Rxb8 {[%emt 0:00:07]} (22. Nb5 Qa5 23. Bb4 Qxb5 $17) 22... Rxb8 {[%emt 0:00:02]} 23. Rb1 {[%emt 0:00:00]} Rxb1 {[%emt 0:00:18]} 24. Qxb1 {[%emt 0:00:06] [#]} Nf3+ {[%emt 0:00:15]} 25. gxf3 {[%emt 0:00:02]} Bxc3 {[%emt 0:00:01]} 26. Qc1 {[%emt 0:00:12] Dodges Bd2} Qa5 {[%emt 0:00:32]} (26... Be5 $14 {was preferrable.}) 27. Bxd6 $16 {[%emt 0:00:24]} Be5 {[%emt 0:00:04]} 28. Be7 {[%emt 0:01:13]} (28. Bxe5 $16 Nxe5 29. f4 (29. Bxc4 Qc5 $14) 29... Nf3+ 30. Kg2) 28... c3 $11 {[%emt 0:00:01]} 29. Bg5 {[%emt 0:00:01]} Bd4 {[%emt 0:00:10] Threatening ...Qa2.} 30. Qc2 {[%emt 0:00:18] Wards off Qa2} Ne5 {[%emt 0:00:09]} (30... Qb6 $5 {[%cal Rd7e5]} 31. Kg2 Qb2 $11) 31. Kg2 {[%emt 0:00:04]} Qb4 {[%emt 0:00:02] Threatens to win with ...Qb2.} 32. Bc1 {[%emt 0:00:06] Dodges Qb2} Qe7 {[%emt 0:00:09] [#]} (32... Bc5 $11) 33. Qd1 {[%emt 0:00:26]} (33. f4 $1 $16 {[%cal Rf4e5]} Ng4 34. Qd3 (34. f3 $2 Qh4 $19)) 33... Qc5 {[%emt 0:00:02]} (33... Ba7 $11) 34. Qc2 {[%emt 0:00:01]} Qe7 {[%emt 0:00:08] [#]} 35. Qd1 {[%emt 0:00:06]} (35. f4 $1 $16 {[%cal Rf4e5]} Ng4 36. Qd3 (36. f3 $2 Qh4 $19)) 35... Bc5 {[%emt 0:00:02]} (35... Qc5 $11 {keeps the balance.}) 36. f4 {[%emt 0:00:08]} (36. Qb3 $16) 36... Qh4 {[%emt 0:00:02]} 37. fxe5 {[%emt 0:00:06]} Qxf2+ {[%emt 0:00:02]} 38. Kh3 {[%emt 0:00:01]} Be3 $1 {[%emt 0:00:14] ...Bxc1 is the strong threat.} 39. d6 {[%emt 0:00:23] aiming for d7.} c2 {[%emt 0:00:01]} 40. Qe2 {[%emt 0:00:02] The position is equal.} Qxe2 {[%emt 0:00:05]} 41. Bxe2 {[%emt 0:00:01]} Bxc1 {[%emt 0:00:01][%mdl 4096] Endgame KB-KB} 42. Bd3 {[%emt 0:00:01]} Bf4 {[%emt 0:00:05]} 43. Bxc2 {[%emt 0:00:06]} Bxe5 {[%emt 0:00:01]} 44. d7 {[%emt 0:00:01]} Bc7 {[%emt 0:00:01]} 45. e5 {[%emt 0:00:02]} Kf8 {[%emt 0:00:02]} 46. e6 {[%emt 0:00:08]} fxe6 {[%emt 0:00:05]} (46... f5 {looks sharper.} 47. Bb3 Ke7 48. Bc4 g5) 47. Kg4 {[%emt 0:00:01]} Bd8 {[%emt 0:00:07]} (47... Bxh2 {is a self mate.} 48. d8=Q+ (48. d8=B Kg7 $14) 48... Kf7 49. Kg5) 48. h4 {[%emt 0:00:02]} h5+ {[%emt 0:00:06]} 49. Kh3 {[%emt 0:00:01]} Kf7 {[%emt 0:00:01]} 50. Bd3 {[%emt 0:00:01]} Kf6 {[%emt 0:00:03]} 51. Bc2 {[%emt 0:00:01]} g5 {[%emt 0:00:03]} 52. hxg5+ {[%emt 0:00:00]} Kxg5 {[%emt 0:00:01]} 53. Bb3 {[%emt 0:00:01]} e5 {[%emt 0:00:01][%cal Be6e5,Be5e4][%mdl 32]} 54. Bc2 {[%emt 0:00:01]} Kf4 {[%emt 0:00:02]} 55. Bg6 {[%emt 0:00:01]} e4 {[%emt 0:00:06]} 56. Bxh5 {[%emt 0:00:02]} Ke5 {[%emt 0:00:01]} 57. Be2 $1 {[%emt 0:00:01]} Kd6 {[%emt 0:00:00]} 58. Bg4 {[%emt 0:00:01]} e3 {[%emt 0:00:02]} 59. Kh2 {[%emt 0:00:01]} e2 {[%emt 0:00:01][%mdl 64] Deflection} 60. Bxe2 {[%emt 0:00:01]} Kxd7 {Weighted Error Value: White=0.19 (very precise) /Black=0.14 (very precise)} 1/2-1/2

[Event "Superbet Blitz Poland 2023"]
[Site "Warsaw"]
[Date "2023.05.25"]
[Round "12"]
[White "Vachier-Lagrave, Maxime"]
[Black "Giri, Anish"]
[Result "1-0"]
[ECO "B90"]
[WhiteElo "2742"]
[BlackElo "2768"]
[Annotator "TA"]
[PlyCount "87"]
[EventDate "2023.05.24"]
[EventType "tourn"]
[EventCountry "POL"]
[SourceTitle "playchess.com"]
[Source "ChessBase"]
[SourceQuality "1"]
[TimeControl "300+2"]

{[%evp 12,87,16,0,14,12,0,0,0,0,0,0,4,-9,-10,-10,0,-26,4,-4,0,-25,0,-11,-7,-14,0,-10,4,-15,-22,-27,-27,-18,-22,-27,0,0,0,-8,0,0,28,0,0,-33,28,-7,15,0,33,5,8,0,0,-56,0,0,0,0,0,-10,0,0,144,0,131,155,226,222,241,231,443,250,524,508,528,524]} 1. e4 {[%emt 0:00:01]} c5 {[%emt 0:00:00]} 2. Nf3 {[%emt 0:00:02][%cal Bg1f3,Bf3d4,Bd4e2,Be2g3][%mdl 32]} d6 {[%emt 0:00:01]} 3. d4 {[%emt 0:00:01]} cxd4 {[%emt 0:00:01]} 4. Nxd4 {[%emt 0:00:01]} Nf6 {[%emt 0:00:01]} 5. Nc3 {[%emt 0:00:01]} a6 6. Bd3 {[%emt 0:00:02]} e5 {[%emt 0:00:05]} 7. Nde2 {[%emt 0:00:01]} Nc6 {[%emt 0:00:01] B90: Sicilian Najdorf: Unusual White 6th moves, 6 Be3 Ng4 and 6 Be3 e5.} 8. Nd5 $5 {[%emt 0:00:02][%mdl 4] Exploring less charted territory.} Nxd5 {[%emt 0:00:01]} 9. exd5 {[%emt 0:00:02]} Nb4 {[%emt 0:00:01] [#] The position is equal.} 10. Bc4 $5 $146 {[%emt 0:00:26][%mdl 8] An interesting novelty.} ({Predecessor:} 10. Be4 a5 11. c3 Na6 12. Bc2 g6 13. h4 h5 14. Bg5 Be7 15. Qd2 Nc5 16. c4 {0-1 Vachier Lagrave,M (2784)-Nepomniachtchi,I (2784) Airthings Masters Prelim rapid 2020 (4)}) 10... Bf5 {[%emt 0:00:25]} 11. Bb3 {[%emt 0:00:02] [#] aiming for Ng3.} a5 {[%emt 0:00:09][%cal Ba6a5,Ba5a4][%mdl 32] ...a4 is the strong threat.} 12. Ng3 {[%emt 0:00:36]} Bd7 {[%emt 0:00:13]} 13. c3 {[%emt 0:00:26]} a4 {[%emt 0:00:43]} 14. Bc4 {[%emt 0:00:01]} (14. cxb4 $5 {[%cal Rb3c2]} axb3 15. Qxb3 $11) 14... b5 {[%emt 0:00:04]} 15. Be2 {[%emt 0:00:02]} Na6 {[%emt 0:00:01]} 16. O-O {[%emt 0:00:02]} Be7 {[%emt 0:00:03]} 17. f4 {[%emt 0:00:02]} exf4 {[%emt 0:00:26]} 18. Nh5 {[%emt 0:00:03]} (18. Qd4 $2 fxg3 19. Qxg7 Qb6+ 20. Kh1 O-O-O 21. Qxg3 Rhg8 $17) 18... Qb6+ {[%emt 0:00:09]} 19. Kh1 {[%emt 0:00:02]} g6 {[%emt 0:00:16]} 20. Nxf4 {[%emt 0:00:19]} O-O {[%emt 0:00:01]} 21. Qd3 {[%emt 0:00:29]} Nc5 {[%emt 0:00:38]} 22. Qd4 {[%emt 0:00:01][%cal Of4h5] Hoping for Nh5!} Qd8 {[%emt 0:00:32]} 23. Nd3 {[%emt 0:00:24]} Nxd3 {[%emt 0:00:15]} (23... f5 $5) 24. Bxd3 {[%emt 0:00:02] Strongly threatening Bh6.} f5 {[%emt 0:00:01]} 25. Bf4 {[%emt 0:00:01]} Rf7 {[%emt 0:00:53]} 26. Rae1 {[%emt 0:00:05]} Bf8 {[%emt 0:00:00]} 27. Re3 {[%emt 0:00:07]} Rb8 {[%emt 0:00:02][%cal Ob5b4]} 28. Re2 {[%emt 0:00:17]} Qb6 {[%emt 0:00:06]} (28... g5 $15 29. Bd2 f4) 29. Qb4 {[%emt 0:00:01]} Qc7 {[%emt 0:00:13]} 30. Rfe1 {[%emt 0:00:03]} Rb7 {[%emt 0:00:05]} 31. Re6 {[%emt 0:00:17][%cal Re6d6]} Rb6 {[%emt 0:00:03]} 32. Be3 {[%emt 0:00:09]} Rb8 {[%emt 0:00:02]} 33. Bg5 {[%emt 0:00:07]} Qc5 {[%emt 0:00:06]} (33... Bxe6 34. dxe6 Rg7 35. Bxb5 $14) (33... Qb7 $1 $15 34. Qd4 (34. Rxd6 Re8 $17) 34... Rc8) 34. Qxc5 $11 {[%emt 0:00:11]} dxc5 {[%emt 0:00:00]} 35. Ra6 $36 {[%emt 0:00:01][%mdl 2048] White has the initiative.} c4 {[%emt 0:00:02]} 36. Bc2 {[%emt 0:00:08]} f4 {[%emt 0:00:08]} 37. d6 {[%emt 0:00:29]} Bf5 {[%emt 0:00:13]} (37... Kg7 $11) 38. Bd1 {[%emt 0:00:08] White is more active.} ({White must play} 38. Bxf5 $16 Rxf5 39. d7) 38... Rd7 {[%emt 0:00:02]} (38... h6 $1 $11 {remains equal.} 39. Be7 (39. Bxf4 Bc8 $11) 39... Bxe7 40. dxe7 Re8) 39. Bxf4 $16 {[%emt 0:00:02] Threatens to win with Bf3.} Rbd8 {[%emt 0:00:04] Black is weak on the dark squares} (39... g5 $16 40. Be5 (40. Bxg5 Rxd6 41. Rxd6 Bxd6 $16) 40... g4) 40. Bf3 $18 {[%emt 0:00:10]} ({Resist} 40. g4 $6 Bd3 $16) 40... Bxd6 {[%emt 0:00:01] [#]} 41. Bg5 {[%emt 0:00:01]} Rb8 $2 {[%emt 0:00:02]} (41... Rc8 {was called for.} 42. Bc6 Rxc6 43. Rxc6 a3 44. bxa3 Be5 {[%mdl 64] Back Rank}) 42. Bc6 {[%emt 0:00:02]} (42. g4 $142) 42... Rdd8 $2 {[%emt 0:00:13]} (42... Bc5 43. Bf4 Rbd8 44. Bxd7 (44. Bxb5 $2 Rd1 $19) 44... Rxd7) 43. Bxd8 Rxd8 44. Bxb5 {[%emt 0:00:03] Weighted Error Value: White=0.21 (precise) /Black=0.36} 1-0

[Event "Superbet Blitz Poland 2023"]
[Site "Warsaw"]
[Date "2023.05.25"]
[Round "12"]
[White "Duda, Jan-Krzysztof"]
[Black "Aronian, Levon"]
[Result "0-1"]
[ECO "D00"]
[WhiteElo "2724"]
[BlackElo "2745"]
[Annotator "TA"]
[PlyCount "100"]
[EventDate "2023.05.24"]
[EventType "tourn"]
[EventCountry "POL"]
[SourceTitle "playchess.com"]
[Source "ChessBase"]
[SourceQuality "1"]
[TimeControl "300+2"]

{[%evp 9,100,0,0,0,20,22,17,17,19,16,33,7,0,-6,0,0,14,21,16,7,15,10,9,0,0,-25,0,17,0,-11,-12,-15,25,22,81,83,90,48,47,-44,0,0,22,0,48,0,96,110,325,170,228,137,115,120,167,0,0,0,0,0,106,-16,0,0,1266,-18,0,-175,-81,-153,-165,-150,0,-167,48,62,293,0,176,0,0,-68,-82,-564,-544,-564,-548,-568,-543,-2618,-2296,-5265,-5222]} 1. d4 {[%emt 0:00:01][%cal Bd2d4,Bd4c5][%mdl 32]} Nf6 {[%emt 0:00:02]} 2. Bg5 {[%emt 0:00:01]} d5 {[%emt 0:00:02]} 3. e3 {[%emt 0:00:02]} c5 {[%emt 0:00:02]} 4. Bxf6 {[%emt 0:00:06]} gxf6 {[%emt 0:00:01]} 5. dxc5 {[%emt 0:00:02]} Nc6 {[%emt 0:00:04]} 6. Nf3 {[%emt 0:00:03] D00: 1 d4 d5: Unusual lines.} e6 {[%emt 0:00:07]} 7. c4 {[%emt 0:00:01]} dxc4 {[%emt 0:00:02]} 8. Nbd2 {[%emt 0:00:02] The position is equal.} c3 {[%emt 0:00:43]} 9. bxc3 {[%emt 0:00:02]} Bxc5 {[%emt 0:00:01] [#]} 10. Rb1 $146 {[%emt 0:00:01]} ({Predecessor:} 10. Be2 f5 11. O-O Be7 12. Qc2 O-O 13. Rfd1 Qc7 14. e4 f4 15. Nb3 Bf6 16. Nbd4 Nxd4 17. Nxd4 {1-0 Moiseenko,A (2670)-Deac,B (2576) Titled Tuesday intern Qual4 25th April blitz 2017 (9)}) 10... O-O {[%emt 0:00:25]} 11. Qa4 {[%emt 0:00:46]} Kh8 {[%emt 0:00:04]} 12. Be2 {[%emt 0:00:16][%cal Bf1e2,Be2f3,Bf3e4,Be4f5][%mdl 32]} f5 {[%emt 0:00:12]} 13. O-O {[%emt 0:00:04]} Qf6 {[%emt 0:00:09]} 14. Nd4 {[%emt 0:00:03]} Ne5 {[%emt 0:00:19]} 15. f4 {[%emt 0:00:29]} Ng6 {[%emt 0:00:01]} 16. Bf3 {[%emt 0:00:23]} Rb8 {[%emt 0:00:02][%cal Ob7b5]} 17. g3 {[%emt 0:00:12]} e5 {[%emt 0:00:14]} (17... b5 $5 {[%cal Rb5a4]} 18. Qc2 (18. Rxb5 $2 Bd7 $19) 18... Bd7 $11) 18. fxe5 {[%emt 0:00:05]} Nxe5 {[%emt 0:00:01]} 19. Qb5 {[%emt 0:00:36]} b6 {[%emt 0:00:21]} 20. Qe2 {[%emt 0:00:15][%cal Of3e4]} (20. Rbe1 $5 {[%cal Rf3e4]}) 20... Be6 {[%emt 0:00:13] [#]} 21. Be4 $1 {[%emt 0:00:07][%cal Re4f5]} Qg5 {[%emt 0:00:28]} (21... Rbe8 $11) (21... Ng6 22. Bxf5) 22. Bxf5 $16 {[%emt 0:00:10]} Bxa2 {[%emt 0:00:06]} 23. Ne4 {[%emt 0:00:04]} Bc4 $1 {[%emt 0:00:04]} 24. Qd2 {[%emt 0:00:49]} (24. Nxg5 $14 Bxe2 25. Nxh7 (25. Nxe2 Bxe3+ 26. Kh1 Bxg5 $15) 25... Bxf1 26. Nxf8) 24... Qe7 {[%emt 0:00:34]} 25. Rf4 {[%emt 0:00:04]} Rbd8 {[%emt 0:00:05]} 26. Qg2 {[%emt 0:00:12] Black must now prevent Qh3.} (26. Qd1 $5 {[%cal Rf4h4]} f6 27. Qh5 $11) 26... Be6 {[%emt 0:00:36]} (26... Ng6 $11 {deserves consideration.} 27. Qh3 Bd5) 27. Rbf1 {[%emt 0:00:23]} (27. Bxe6 $14 fxe6 28. Nxc5 Qxc5 29. Qe4 (29. Nxe6 Qxe3+ 30. Qf2 Qxf2+ 31. Kxf2 Ng4+ 32. Kg2 Rxf4 $11)) 27... Bxf5 {[%emt 0:00:14]} (27... Ng6 $1 $11) 28. Nxf5 {[%emt 0:00:04]} Qe6 {[%emt 0:00:02]} (28... Qb7 $16 {was called for.}) 29. Nd4 {[%emt 0:00:15] Excellent horsemanship.} (29. Rh4 $142) 29... Qh6 {[%emt 0:00:25] Against Ng5} (29... Qe7 {was necessary.} 30. Nf6 Rd6) 30. Kh1 {[%emt 0:00:01] And now Rh4 would win.} Ng6 {[%emt 0:00:11] Inhibits Rh4.} 31. R4f3 {[%emt 0:00:03] Nf5 would be deadly.} (31. Rxf7 Qxe3 32. Nf5 (32. Rxa7 Rxf1+ {[%mdl 64] Deflection} 33. Qxf1 Qxe4+ $19) 32... Qd3 33. Rxa7 (33. Ng5 Rd7 $11) 33... Rde8 34. Nxc5 bxc5 $14) 31... Ne5 {[%emt 0:00:03]} (31... Ne7 $16) 32. Nf5 $2 {[%emt 0:00:03]} (32. Rf5 $18 Nc4 33. Rf6 (33. Rxf7 Nxe3 34. Qd2 Rxf7 $15)) 32... Qc6 $11 {[%emt 0:00:04]} 33. Rf4 {[%emt 0:00:03]} Ng6 {[%emt 0:00:01]} 34. Rg4 {[%emt 0:00:04]} Rde8 {[%emt 0:00:03]} (34... Ne7 $11 35. Nxc5 Qxc5) 35. Nh6 {[%emt 0:00:14]} (35. Nxc5 $1 $16 Qxc5 36. Qh3) 35... Ne5 $36 {[%emt 0:00:07][%cal Oe5g4][%mdl 2048] Black has some pressure.} 36. Rh4 {[%emt 0:00:04] aiming for Nf6.} (36. Rf6 Re6 37. Rxe6 Qxe6 38. Nxc5 Qxh6 $19) 36... Ng6 $2 {[%emt 0:00:00][%mdl 8192]} (36... Re6 $11 37. Nf5 Ng6 38. Rxh7+ {[%mdl 64] Decoy} (38. Rg4 Ne5 $11) 38... Kxh7 39. Qh3+ Kg8 40. Nh6+ Kh8 41. Nf5+ Kg8 42. Nh6+ Kh8 43. Nf5+ Kg8) 37. Rg4 $2 {[%emt 0:00:03]} ({White has to play} 37. Nxf7+ $18 Kg8 38. Nf6+ {[%mdl 64] Discovered Attack} Qxf6 39. Rxf6 Rxf7 40. Rxf7 {[%mdl 64] Remove Defender} Kxf7 41. Rxh7+ Kg8 42. Rxa7) 37... Ne5 {[%emt 0:00:01][%cal Oe5g4]} (37... f6 {simplifies} 38. Nxc5 Qxc5 39. Nf5 Re5) 38. Rf6 $2 {[%emt 0:00:01]} (38. Rh4 $1 $11 Re6 39. Nf5) 38... Qd5 {[%emt 0:00:02]} (38... Re6 $1 $19 {[%cal Re6f6] is more deadly.} 39. Rxe6 Qxe6 {[%mdl 64] Trapped Piece} 40. Nxc5 Qxh6) 39. Rh4 {[%emt 0:00:03]} (39. c4 $142 Nxc4 40. Rf5) 39... Ng6 $1 $17 {[%emt 0:00:01]} (39... Bxe3 40. Nd6 Qd1+ 41. Qf1 Qxf1+ 42. Rxf1 $17) 40. Rg4 {[%emt 0:00:02][%cal Oc3c4]} Ne5 {[%emt 0:00:03]} (40... Bxe3 $17 41. Ng5 Qd7) 41. Rg5 $2 {[%emt 0:00:01]} (41. Rh4 $1 $11 {and White has nothing to worry.}) 41... Qd1+ $2 {[%emt 0:00:06]} (41... Bxe3 $19 42. Rgf5 Qd3) 42. Rf1 $14 {[%emt 0:00:01]} Qd5 {[%emt 0:00:02] [#]} ({Black should play} 42... Qd3 $14) 43. Nf6 $2 {[%emt 0:00:04]} ({White must play} 43. Ng4 $1 $18 {[%cal Rg4f6] Strongly threatening Ngf6.} f5 44. Ngf6 (44. Rgxf5 Rxf5 45. Rxf5 Qd1+ 46. Rf1 Qxg4 $17) 44... Rxf6 45. Nxf6 Qxg2+ 46. Kxg2) 43... Qxg2+ $11 {[%emt 0:00:01]} 44. Kxg2 {[%emt 0:00:01]} Re6 {[%emt 0:00:03]} ({Don't do} 44... Bxe3 45. Rh5 Kg7 46. Nxe8+ Rxe8 47. Nf5+ Kg6 48. Rh4 $16) 45. e4 {[%emt 0:00:02]} (45. Nd7 $11 Nxd7 46. Nxf7+ Rxf7 47. Rxf7) 45... Be7 $1 $15 {[%emt 0:00:01]} 46. Rgf5 {[%emt 0:00:02][%mdl 8192] [#]} (46. Rxe5 $17 Rxe5 47. Nd7 Rxe4 48. Nxf8 Bxf8 49. Nxf7+ Kg7 50. Nd8) 46... Bxf6 $1 $19 {[%emt 0:00:00] Black is clearly winning.} 47. Rxf6 {[%emt 0:00:01]} Kg7 {[%emt 0:00:04]} 48. Rxe6 {[%emt 0:00:03]} fxe6 {[%emt 0:00:00]} 49. Rxf8 Kxf8 {[%emt 0:00:01]} 50. g4 {[%emt 0:00:03]} a5 {[%emt 0:00:01] Weighted Error Value: White=0.89/Black=0.42} 0-1

[Event "Superbet Blitz Poland 2023"]
[Site "Warsaw"]
[Date "2023.05.25"]
[Round "12"]
[White "Deac, Bogdan-Daniel"]
[Black "Carlsen, Magnus"]
[Result "1/2-1/2"]
[ECO "A40"]
[WhiteElo "2700"]
[BlackElo "2853"]
[Annotator "TA"]
[PlyCount "123"]
[EventDate "2023.05.24"]
[EventType "tourn"]
[EventCountry "POL"]
[SourceTitle "playchess.com"]
[Source "ChessBase"]
[SourceQuality "1"]
[TimeControl "300+2"]

{[%evp 9,123,50,42,35,38,38,45,50,61,41,75,66,72,70,73,68,72,69,84,69,72,62,75,43,43,30,28,23,25,39,41,33,26,22,31,10,54,8,3,0,7,0,0,0,0,0,0,-1,18,8,11,-31,-32,-26,0,0,3,0,8,0,0,0,29,20,285,81,337,100,120,0,0,0,17,19,16,0,0,0,0,0,16,0,5,8,8,0,0,0,0,0,0,0,0,0,0,0,0,0,0,0,0,0,0,0,0,0,0,0,0,0,0,0,0,0,0,0]} 1. d4 {[%emt 0:00:02]} b5 {[%emt 0:00:01]} 2. e4 {[%emt 0:00:04]} Bb7 {[%emt 0:00:02]} 3. Bxb5 {[%emt 0:00:14]} Bxe4 {[%emt 0:00:01]} 4. Nf3 {[%emt 0:00:01]} c6 {[%emt 0:00:01]} 5. Be2 {[%emt 0:00:21]} e6 {[%emt 0:00:04]} 6. O-O {[%emt 0:00:11] A40: Unusual replies to 1 d4.} Bxf3 {[%emt 0:00:02]} 7. Bxf3 {[%emt 0:00:01][%cal Od4d5]} d5 {[%emt 0:00:07] [#]} 8. c4 $1 {[%emt 0:00:14] [#] White is slightly better.} Nd7 $146 {[%emt 0:00:07]} (8... Bd6 9. g3) ({Predecessor:} 8... Nf6 9. Qa4 Nfd7 10. Qc2 Be7 11. a3 a5 12. Be3 O-O 13. g3 Bf6 14. Rd1 Nb6 {1-0 Labeckas,K (2265)-Zapolskis,A (2351) Baltija Cup Palanga 2008 (3)}) 9. Re1 {[%emt 0:00:20]} Ngf6 {[%emt 0:01:04]} 10. Nc3 {[%emt 0:00:18]} Be7 {[%emt 0:00:07]} 11. c5 {[%emt 0:00:08]} a5 {[%emt 0:00:07]} 12. a3 {[%emt 0:00:01]} O-O {[%emt 0:00:35]} 13. Rb1 {[%emt 0:00:02]} Ne8 {[%emt 0:00:06]} 14. b4 {[%emt 0:00:02]} axb4 {[%emt 0:00:02]} 15. axb4 {[%emt 0:00:02]} ({But not} 15. Rxb4 e5 $15) 15... Nc7 {[%emt 0:00:01]} 16. b5 {[%emt 0:02:30]} cxb5 {[%emt 0:00:03]} 17. Bf4 {[%emt 0:00:33] Bxc7 would be deadly.} Bf6 {[%emt 0:00:05][%cal Ob5b4]} 18. Nxb5 {[%emt 0:00:11]} Nxb5 {[%emt 0:00:01]} 19. Rxb5 {[%emt 0:00:01]} Nb8 {[%emt 0:00:11]} 20. Rb6 {[%emt 0:00:02]} Qc8 {[%emt 0:00:28]} 21. Be3 {[%emt 0:00:13]} Nc6 {[%emt 0:00:05]} 22. Be2 {[%emt 0:00:02]} Qc7 {[%emt 0:00:22]} 23. Bb5 {[%emt 0:00:03]} (23. g3 $14) 23... Ne7 $11 {[%emt 0:00:02]} 24. g3 {[%emt 0:00:06]} Nf5 {[%emt 0:00:09]} 25. Bd3 {[%emt 0:00:03] Bxf5 is the strong threat.} Nxe3 {[%emt 0:00:11]} 26. fxe3 {[%emt 0:00:01]} g6 {[%emt 0:00:04]} 27. Qe2 {[%emt 0:00:04]} Ra3 {[%emt 0:00:04]} 28. Reb1 {[%emt 0:00:03]} Qa7 {[%emt 0:00:02]} 29. Kg2 {[%emt 0:00:03]} Qa5 {[%emt 0:00:04]} 30. R6b5 {[%emt 0:00:01]} Qc3 {[%emt 0:00:02]} 31. Rd1 {[%emt 0:00:02]} Rfa8 {[%emt 0:00:01] And now ...Ra2 would win.} 32. Rb2 {[%emt 0:00:02] Dodges Ra2} Bg5 {[%emt 0:00:24][%cal Og5e3]} 33. Rc2 {[%emt 0:00:01]} Qa5 {[%emt 0:00:03]} (33... Qb4 $5) 34. c6 {[%emt 0:00:02]} Rc8 {[%emt 0:00:07]} 35. e4 {[%emt 0:00:02]} Ra4 {[%emt 0:00:04]} 36. exd5 {[%emt 0:00:02]} exd5 $2 {[%emt 0:00:57][%mdl 8192]} (36... Qxd5+ $11 {and Black is okay.} 37. Be4 Qd6) 37. Qe5 $2 {[%emt 0:00:01]} (37. Qg4 $18 Qd8 38. c7 {[%mdl 64] Deflection} Rxc7 39. Rxc7 Qxc7 40. Qxg5) 37... Qd8 {[%emt 0:00:10][%mdl 8192]} (37... Bh6 $16 {is a better defense.}) 38. Rf1 $2 {[%emt 0:00:04]} (38. c7 $18 {has better winning chances.} Qf6 39. Qxf6 (39. Qxd5 Rxd4 40. Qb7 Qe6 $16) 39... Bxf6 40. Rb1) 38... Ra7 {[%emt 0:00:03] [#]} 39. h4 {[%emt 0:00:02] White is much more active.} (39. Rc5 $1 $16 {[%cal Rc5d5]} Bh6 40. Rxd5) 39... Bh6 {[%cal Bg5h6,Bh6g7,Bg7f6][%mdl 32] The position is equal.} 40. Qf6 {[%emt 0:00:02]} Bg7 {[%emt 0:00:08]} 41. Qxd8+ {[%emt 0:00:01][%mdl 64] Remove Defender} Rxd8 {[%emt 0:00:01][%cal Bc8d8,Bd8d6,Bd6e6][%mdl 32]} 42. Rd1 {[%emt 0:00:03]} Rc7 {[%emt 0:00:02]} 43. Be2 {[%emt 0:00:02]} Rd6 {[%emt 0:00:02]} 44. Bb5 {[%emt 0:00:02]} h5 {[%emt 0:00:02]} 45. Re2 {[%emt 0:00:02]} Bf6 {[%emt 0:00:01]} 46. Re8+ {[%emt 0:00:02]} Kg7 {[%emt 0:00:01]} 47. Rb8 {[%emt 0:00:01]} Re6 {[%emt 0:00:02]} 48. Rb7 {[%emt 0:00:02]} Ree7 {[%emt 0:00:01]} 49. Rxc7 {[%emt 0:00:02]} Rxc7 {[%emt 0:00:00][%mdl 4096] Endgame KRB-KRB} 50. Rc1 {[%emt 0:00:03]} Be7 {[%emt 0:00:03]} 51. Rb1 {[%emt 0:00:02]} Bd6 52. Ra1 {[%emt 0:00:02]} Rc8 {[%emt 0:00:05]} 53. Ra7 {[%emt 0:00:02]} Rc7 {[%emt 0:00:05]} 54. Ra8 {[%emt 0:00:02]} Kf6 {[%emt 0:00:02]} 55. Rd8 {[%emt 0:00:02]} Ke7 {[%emt 0:00:01]} 56. Rd7+ {[%emt 0:00:02]} Rxd7 {[%emt 0:00:01]} 57. cxd7 {[%emt 0:00:01] KB-KB} Bc7 {[%emt 0:00:01]} 58. Bc6 {[%emt 0:00:01]} Kd6 {[%emt 0:00:01]} 59. Ba4 {[%emt 0:00:02]} Ke6 {[%emt 0:00:01]} 60. Bc6 {[%emt 0:00:01]} Kd6 {[%emt 0:00:02]} 61. Ba4 {[%emt 0:00:01]} Ke6 {[%emt 0:00:00]} 62. Bc6 {[%emt 0:00:01] Weighted Error Value: White=0.21 (precise) /Black=0.17 (very precise)} 1/2-1/2